bitfinex/quotes_SOLUSD_20241214
["timestamp","ask_amount","ask_price","bid_price","bid_amount"]
[1734182534384,26.0729,221.01,220.91,0.5298021]
[1734182534594,26.0729,221.01,220.92,0.12549]
[1734182535196,26.0729,221.01,220.92,0.25098]
[1734182535425,23.776884,221.04,220.94,0.25098]
[1734182535664,1.6253,221.09,220.98,0.25098]
[1734182535665,6.0729,221.07,220.98,0.25098]
[1734182535811,6.0729,221.07,221.0,0.12549]
[1734182536122,1.6253,221.09,221.01,0.67847818]
[1734182536284,1.6253,221.09,221.02,0.12549]
[1734182536489,1.6253,221.09,220.98,0.12549]
[1734182536716,1.6253,221.09,221.0,14.19199884]
[1734182536917,1.6253,221.09,221.01,0.25098]
[1734182537088,1.6253,221.09,221.02,0.67841979]
[1734182538587,21.6253,221.09,220.98,14.19207195]
[1734182538900,21.6253,221.09,220.99,0.25098]
[1734182539107,21.6253,221.09,221.0,0.67844345]
[1734182540616,21.6253,221.09,220.95,0.67852717]
[1734182540617,23.776884,221.08,220.95,0.67852717]
[1734182540822,20.0,221.05,220.95,0.67852717]
[1734182542099,1.6253,221.09,220.98,13.5136054]
[1734182542314,21.6253,221.09,220.99,0.67847187]
[1734182542821,20.0,221.09,220.99,0.67847187]
[1734182543195,20.0,221.09,221.0,13.7645854]
[1734182543400,20.0,221.09,220.99,0.67847187]
[1734182543401,1.565,221.14,221.02,13.7645854]
[1734182543705,1.565,221.14,221.03,0.67833314]
[1734182545612,21.565,221.14,221.03,0.67833314]
[1734182546122,20.0,221.1,221.03,0.67833314]
[1734182546818,21.565,221.14,221.03,0.67833314]
[1734182547220,20.0,221.14,221.04,0.25098]
[1734182547529,1.565,221.19,221.06,13.7645854]
[1734182547711,3.44919091,221.22,221.09,0.25098]
[1734182547916,6.3862,221.23,221.09,0.92912871]
[1734182548217,6.3862,221.23,221.09,0.67814871]
[1734182548611,2.68632126,221.21,221.09,0.67814871]
[1734182548820,2.68632126,221.21,221.06,13.5136054]
[1734182549024,20.0,221.17,221.07,0.67821135]
[1734182550311,23.776884,221.16,221.07,0.67821135]
[1734182550512,20.0,221.13,221.04,14.19193202]
[1734182550711,20.0,221.09,221.0,0.67832192]
[1734182551014,23.776884,221.08,220.97,13.5136054]
[1734182551217,20.0,221.05,220.95,14.19213797]
[1734182551531,20.0,221.05,220.96,13.5136054]
[1734182551714,20.0,221.05,220.97,0.67858558]
[1734182552129,20.0,221.05,220.94,7.7121]
[1734182552130,23.776884,221.04,220.94,7.7121]
[1734182552517,23.776884,221.04,220.94,21.90436747]
[1734182553213,23.776884,221.04,220.95,13.5136054]
[1734182553410,23.776884,221.04,220.96,0.67861501]
[1734182553823,23.776884,221.08,220.99,13.5136054]
[1734182554021,6.3862,221.12,221.0,14.19209296]
[1734182554225,6.3862,221.12,221.01,13.5136054]
[1734182554433,6.3862,221.12,221.02,0.67842297]
[1734182554933,6.3862,221.12,220.97,13.5136054]
[1734182555138,6.3862,221.12,220.98,0.67855474]
[1734182555439,20.0,221.09,220.98,14.19216014]
[1734182555641,23.776884,221.08,220.98,14.19216014]
[1734182556253,20.0,221.05,220.98,0.67855474]
[1734182556425,20.0,221.05,220.95,14.19215169]
[1734182556819,23.776884,221.04,220.95,0.67854629]
[1734182557013,20.0,221.01,220.95,0.67854629]
[1734182558031,0.12549,221.07,220.95,14.19215169]
[1734182558236,20.0,221.05,220.95,14.19215169]
[1734182558419,20.0,221.05,220.97,13.5136054]
[1734182558629,20.0,221.05,220.98,0.6785488]
[1734182559032,23.776884,221.04,220.98,0.6785488]
[1734182559925,20.0,221.09,220.99,13.5136054]
[1734182560131,20.0,221.09,221.0,0.67849714]
[1734182560328,0.12549,221.11,221.0,0.67849714]
[1734182561019,0.12549,221.1,221.0,0.67849714]
[1734182561219,6.2018,221.18,221.0,0.67849714]
[1734182561424,6.2018,221.18,221.0,14.19210254]
[1734182561625,0.12549,221.12,221.0,14.19210254]
[1734182561825,0.12549,221.12,221.0,0.67849714]
[1734182562044,0.12549,221.12,220.94,21.609]
[1734182562045,0.12549,221.12,220.99,0.67853165]
[1734182562242,6.39797709,221.12,220.95,0.67856399]
[1734182562434,26.39797709,221.12,220.95,14.19216939]
[1734182562633,0.12549,221.07,220.95,14.19216939]
[1734182562840,20.0,221.04,220.95,14.19216939]
[1734182563043,23.776884,221.03,220.95,14.19216939]
[1734182563243,0.12549,221.06,220.95,0.67856399]
[1734182563435,23.776884,221.03,220.95,14.19216939]
[1734182563839,23.776884,221.03,220.96,13.5136054]
[1734182564053,23.776884,221.03,220.97,0.67860304]
[1734182565041,23.776884,221.03,220.96,0.67861071]
[1734182565550,23.776884,221.03,220.94,1.609]
[1734182565757,20.0,221.0,220.94,1.609]
[1734182565963,23.776884,220.99,220.94,1.609]
[1734182566326,23.776884,220.99,220.94,15.1226054]
[1734182566630,23.776884,220.99,220.94,1.609]
[1734182567448,23.776884,220.99,220.94,15.1226054]
[1734182567646,23.776884,220.99,220.95,13.5136054]
[1734182567839,23.776884,220.99,220.93,14.19229367]
[1734182568254,23.776884,220.99,220.94,13.5136054]
[1734182568459,23.776884,220.99,220.91,0.5298021]
[1734182568460,23.776884,220.95,220.91,0.5298021]
[1734182569061,43.776884,220.92,220.91,0.5298021]
[1734182569653,43.902374,220.92,220.91,0.5298021]
[1734182572362,43.776884,220.92,220.91,0.5298021]
[1734182574065,43.902374,220.92,220.91,0.5298021]
[1734182576058,44.027864,220.92,220.91,0.5298021]
[1734182576843,10.1354508,220.99,220.91,0.5298021]
[1734182577044,6.47929589,220.99,220.91,0.5298021]
[1734182577243,4.68583322,220.99,220.91,0.5298021]
[1734182578670,23.902374,220.98,220.91,0.5298021]
[1734182578860,23.776884,220.94,220.91,0.5298021]
[1734182579050,4.68583322,220.99,220.91,0.5298021]
[1734182579245,32.34407194,221.06,220.92,2.22765269]
[1734182579486,4.68583322,221.03,220.92,2.22765269]
[1734182579966,11.37482586,221.03,220.92,2.22765269]
[1734182580371,4.68583322,221.03,220.92,2.22765269]
[1734182581070,23.776884,221.02,220.92,2.22765269]
[1734182581547,0.12549,220.98,220.91,0.5298021]
[1734182581885,43.776884,220.92,220.91,0.5298021]
[1734182583465,43.902374,220.92,220.91,0.5298021]
[1734182583854,23.776884,220.87,220.82,1.5489]
[1734182584248,23.776884,220.87,220.8,0.67914153]
[1734182584462,20.0,220.84,220.79,104.16666667]
[1734182584978,23.776884,220.87,220.79,104.16666667]
[1734182585191,23.776884,220.83,220.79,104.16666667]
[1734182586982,0.12549,220.82,220.79,104.16666667]
[1734182588249,20.0,220.84,220.79,104.16666667]
[1734182588498,4.68583322,220.91,220.8,0.67917414]
[1734182588868,4.68583322,220.91,220.79,104.16666667]
[1734182589068,0.12549,220.9,220.79,104.16666667]
[1734182589700,23.902374,220.9,220.79,104.16666667]
[1734182589890,0.12549,220.89,220.79,104.16666667]
[1734182590069,0.12549,220.85,220.79,104.16666667]
[1734182590691,23.776884,220.86,220.79,104.16666667]
[1734182591267,0.12549,220.85,220.79,104.16666667]
[1734182591692,23.776884,220.86,220.79,104.16666667]
[1734182592112,23.776884,220.82,220.79,104.16666667]
[1734182592488,23.902374,220.82,220.79,104.16666667]
[1734182592718,43.902374,220.8,220.79,104.16666667]
[1734182593820,43.902374,220.8,220.79,35.91662202]
[1734182594522,20.12549,220.8,220.79,35.91662202]
[1734182595029,20.0,220.8,220.79,35.91662202]
[1734182595524,4.68583322,220.83,220.79,35.91662202]
[1734182595750,0.12549,220.81,220.79,35.91662202]
[1734182596396,0.25098,220.81,220.79,35.91662202]
[1734182596723,20.12549,220.8,220.79,35.91662202]
[1734182596926,44.027864,220.8,220.79,35.91662202]
[1734182597495,20.0,220.8,220.79,35.91662202]
[1734182600007,7.35618849,220.83,220.79,35.91662202]
[1734182600241,2.67035527,220.83,220.79,35.91662202]
[1734182601733,20.0,220.85,220.79,35.91662202]
[1734182602032,6.68899264,220.89,220.79,35.91662202]
[1734182602332,4.61886437,220.94,220.81,1.5914]
[1734182602528,4.61886437,220.94,220.82,0.67913456]
[1734182602707,2.75037782,220.95,220.86,13.5350935]
[1734182602918,2.77325313,220.97,220.88,6.1667]
[1734182603285,6.68899264,221.03,220.91,21.62377244]
[1734182603436,6.68899264,221.03,220.93,1.6259]
[1734182603651,2.65399971,221.02,220.94,0.678735]
[1734182603949,13.12099264,221.08,220.94,0.678735]
[1734182604149,6.432,221.08,220.94,22.30250744]
[1734182604310,6.432,221.08,220.94,0.678735]
[1734182604628,5.70532551,221.13,220.98,21.62377244]
[1734182604842,6.90512196,221.14,220.99,22.3022615]
[1734182605019,6.905122,221.12,220.99,22.3022615]
[1734182605327,6.905122,221.12,220.99,0.67848906]
[1734182605532,6.905122,221.12,220.95,0.6785343]
[1734182605533,2.72337254,221.1,220.95,0.6785343]
[1734182605706,2.72337254,221.1,220.95,22.30230674]
[1734182606111,0.12549,221.09,220.95,0.6785343]
[1734182606407,6.40924375,221.09,220.93,1.6259]
[1734182606616,0.25098,221.07,220.93,1.6259]
[1734182606819,24.027864,221.07,220.93,1.6259]
[1734182607015,23.776884,220.99,220.93,1.6259]
[1734182607222,0.12549,221.02,220.93,1.6259]
[1734182607424,23.776884,220.99,220.93,1.6259]
[1734182608013,0.12549,220.98,220.89,0.67868099]
[1734182608324,0.12549,220.94,220.86,1.6259]
[1734182609418,20.0,220.92,220.82,6.1667]
[1734182609618,23.776884,220.91,220.82,6.84577004]
[1734182610209,0.12549,220.9,220.82,6.1667]
[1734182610724,20.89164,220.91,220.79,37.54252202]
[1734182610934,20.0,220.88,220.79,37.54252202]
[1734182612428,2.75226987,220.98,220.81,21.62377244]
[1734182612638,20.0,220.96,220.82,22.30279863]
[1734182612935,20.0,220.96,220.82,0.67902619]
[1734182613119,20.0,220.96,220.8,0.67915489]
[1734182613332,20.0,220.96,220.8,22.30292733]
[1734182613524,23.776884,220.95,220.82,21.62377244]
[1734182613716,23.776884,220.91,220.8,22.30280398]
[1734182614043,23.776884,220.91,220.79,37.54252202]
[1734182614246,23.776884,220.91,220.81,0.6790812]
[1734182614422,23.776884,220.91,220.79,59.16629446]
[1734182614619,23.776884,220.91,220.79,37.54252202]
[1734182614825,23.776884,220.91,220.8,0.67919819]
[1734182615232,20.0,220.88,220.79,37.54252202]
[1734182615452,23.776884,220.87,220.79,37.54252202]
[1734182616425,23.776884,220.87,220.79,35.91662202]
[1734182616426,20.0,220.84,220.79,35.91662202]
[1734182616630,23.776884,220.83,220.79,35.91662202]
[1734182617552,43.776884,220.8,220.79,35.91662202]
[1734182618960,20.0,220.8,220.79,35.91662202]
[1734182619254,23.776884,220.9,220.79,35.91662202]
[1734182619414,4.61886437,220.91,220.8,0.67920911]
[1734182619925,4.61886437,220.91,220.8,22.30298155]
[1734182620115,6.28375375,220.96,220.81,21.62377244]
[1734182620318,6.28375375,220.96,220.82,0.67904695]
[1734182621552,20.0,220.93,220.82,0.67904695]
[1734182622080,20.0,220.93,220.81,6.5989]
[1734182622748,23.902374,220.92,220.79,35.91662202]
[1734182622949,20.0,220.89,220.79,35.91662202]
[1734182623149,23.902374,220.88,220.79,35.91662202]
[1734182623369,23.776884,220.88,220.79,35.91662202]
[1734182623873,23.776884,220.88,220.79,36.59577486]
[1734182624667,23.776884,220.88,220.79,35.91662202]
[1734182625045,23.776884,220.84,220.79,35.91662202]
[1734182625464,20.0,220.85,220.79,35.91662202]
[1734182625676,20.0,220.9,220.79,35.91662202]
[1734182625945,5.9604468,220.93,220.79,35.91662202]
[1734182625946,23.776884,220.85,220.79,35.91662202]
[1734182626167,0.12549,220.89,220.79,35.91662202]
[1734182626168,23.776884,220.81,220.79,35.91662202]
[1734182628283,24.81514707,220.84,220.79,35.91662202]
[1734182628474,20.0,220.87,220.79,35.91662202]
[1734182628674,20.0,220.83,220.79,35.91662202]
[1734182629176,4.81514707,220.9,220.79,35.91662202]
[1734182629371,6.0797,220.97,220.8,0.67914581]
[1734182629573,2.66262758,220.9,220.8,0.67914581]
[1734182631261,2.66262758,220.9,220.79,35.91662202]
[1734182632067,2.66262758,220.9,220.8,0.67922293]
[1734182632258,20.0,220.94,220.8,0.67922293]
[1734182632464,20.0,220.94,220.79,35.91662202]
[1734182632668,0.12549,220.93,220.8,0.67919382]
[1734182632866,2.70786445,220.91,220.8,0.67919382]
[1734182634166,2.70786445,220.91,220.81,6.1598]
[1734182636277,0.12549,220.9,220.81,6.1598]
[1734182638473,2.70786445,220.91,220.81,6.1598]
[1734182638673,4.13575413,220.96,220.82,22.30301908]
[1734182638875,4.13575413,220.96,220.83,21.62377244]
[1734182639173,0.12549,220.94,220.81,6.1598]
[1734182639373,6.63824025,220.94,220.81,6.1598]
[1734182639584,12.59868705,220.94,220.81,6.1598]
[1734182639888,23.776884,220.93,220.81,6.1598]
[1734182640585,20.0,220.91,220.81,6.1598]
[1734182641392,20.0,220.92,220.81,6.1598]
[1734182641902,4.13575413,220.94,220.81,6.83892332]
[1734182642089,2.70216215,220.95,220.81,28.46269576]
[1734182643280,2.70216215,220.95,220.82,21.62377244]
[1734182643568,4.13575413,220.99,220.84,21.62377244]
[1734182643868,4.13575413,220.99,220.86,1.5551]
[1734182644068,4.13575413,220.99,220.86,23.17887244]
[1734182644269,2.74946475,220.99,220.87,0.67890968]
[1734182644477,2.74946475,220.99,220.86,1.5551]
[1734182644693,2.74946475,220.99,220.86,2.23402468]
[1734182645375,22.74946475,220.99,220.86,2.23402468]
[1734182646093,0.12549,220.98,220.86,1.5551]
[1734182647192,2.74946475,220.99,220.87,0.67900204]
[1734182647687,0.12549,220.98,220.86,1.5551]
[1734182648873,23.902374,220.98,220.86,1.5551]
[1734182649093,0.12549,220.94,220.86,1.5551]
[1734182649294,0.12549,220.9,220.81,7.7149]
[1734182649492,0.12549,220.9,220.81,1.5551]
[1734182649794,0.12549,220.86,220.81,1.5551]
[1734182650167,0.12549,220.86,220.79,35.91662202]
[1734182650389,23.902374,220.86,220.79,35.91662202]
[1734182650592,20.0,220.83,220.79,35.91662202]
[1734182652878,20.0,220.85,220.79,35.91662202]
[1734182653197,2.76671885,220.87,220.79,35.91662202]
[1734182653894,0.92278566,220.9,220.79,36.59587661]
[1734182654786,0.12549,220.89,220.79,35.91662202]
[1734182654989,0.92278566,220.9,220.8,0.67921364]
[1734182655681,0.12549,220.9,220.79,35.91662202]
[1734182656275,20.0,220.91,220.79,36.59584843]
[1734182656485,20.0,220.91,220.79,58.21962087]
[1734182656692,20.0,220.91,220.79,36.59584843]
[1734182657996,3.70061531,220.93,220.83,21.62377244]
[1734182658308,2.74946475,220.99,220.86,6.294]
[1734182658598,0.12549,220.98,220.87,0.67889932]
[1734182658794,2.74946475,220.99,220.87,22.30267176]
[1734182658997,3.70061531,221.0,220.87,22.30267176]
[1734182658998,3.70061531,221.0,220.89,21.62377244]
[1734182659203,5.96049704,221.05,220.91,21.62377244]
[1734182659371,13.53383317,221.07,220.92,22.30249275]
[1734182659590,4.55643212,221.08,220.92,0.67872031]
[1734182659779,2.67768296,221.04,220.92,0.67872031]
[1734182660006,2.67768296,221.04,220.9,0.67880363]
[1734182660207,2.67768296,221.04,220.88,21.62377244]
[1734182660391,2.67768296,221.04,220.89,22.30256402]
[1734182660589,2.67768296,221.04,220.9,21.62377244]
[1734182660791,2.67768296,221.04,220.89,22.30256402]
[1734182661010,0.12549,221.03,220.89,22.30256402]
[1734182661307,4.55643212,221.08,220.93,21.62377244]
[1734182661623,4.55643212,221.08,220.95,21.62377244]
[1734182661908,2.68392781,221.06,220.97,6.294]
[1734182662113,6.905122,221.12,221.0,21.62377244]
[1734182662412,6.905122,221.12,220.99,2.18287338]
[1734182662413,12.86561904,221.12,220.99,2.18287338]
[1734182662588,6.905122,221.12,220.99,1.5044]
[1734182662791,0.12549,221.11,220.99,1.5044]
[1734182662992,2.83480014,221.11,220.99,1.5044]
[1734182663493,20.0,221.09,220.99,1.5044]
[1734182665699,20.0,221.09,220.99,2.18297966]
[1734182665910,2.70931014,221.11,221.0,21.62377244]
[1734182666089,2.70931014,221.11,220.99,2.18297966]
[1734182666090,2.70931014,221.11,221.01,22.3022316]
[1734182666289,6.905122,221.12,221.03,21.62377244]
[1734182666590,6.905122,221.12,221.01,0.67845916]
[1734182666591,6.905122,221.12,221.04,0.67841458]
[1734182666795,6.905122,221.12,221.02,0.67844999]
[1734182667213,6.905122,221.12,220.99,1.5044]
[1734182667422,6.905122,221.12,221.01,0.67846064]
[1734182668616,20.0,221.09,221.01,0.67846064]
[1734182668804,20.0,221.09,221.02,0.67849004]
[1734182669393,20.0,221.09,220.99,23.8066232]
[1734182669614,20.0,221.09,220.99,2.18285076]
[1734182670701,23.776884,221.08,220.99,2.18285076]
[1734182671435,20.0,221.09,221.01,21.62377244]
[1734182671737,20.0,221.09,221.02,0.6784276]
[1734182672216,23.776884,221.08,221.02,0.6784276]
[1734182672514,23.776884,221.08,221.03,21.62377244]
[1734182672724,4.55643212,221.17,221.04,0.67841286]
[1734182672897,23.776884,221.13,221.03,21.62377244]
[1734182673093,41.86887,221.13,221.04,0.67841193]
[1734182673499,4.55643212,221.17,221.05,21.62377244]
[1734182673708,4.55643212,221.17,221.08,21.62377244]
[1734182673923,18.088886,221.17,221.09,6.48]
[1734182674231,2.7797862,221.19,221.12,21.62377244]
[1734182674434,2.7797862,221.19,221.13,0.67813162]
[1734182674717,2.7797862,221.19,221.14,21.62377244]
[1734182674893,4.55643212,221.28,221.15,0.6780763]
[1734182675099,2.70568086,221.26,221.16,21.62377244]
[1734182675331,2.70568086,221.26,221.12,5.0]
[1734182675332,2.70568086,221.26,221.18,21.62377244]
[1734182675715,2.70568086,221.26,221.19,21.62377244]
[1734182675898,10.70603212,221.33,221.19,21.62377244]
[1734182676104,10.70603212,221.33,221.22,21.62377244]
[1734182676105,2.71408528,221.31,221.22,21.62377244]
[1734182676320,4.55643212,221.33,221.22,21.62377244]
[1734182676617,4.55643212,221.33,221.23,21.62377244]
[1734182676803,4.55643212,221.33,221.24,22.30159843]
[1734182677321,4.55643212,221.38,221.28,21.62377244]
[1734182677501,4.55643212,221.38,221.25,1.5866]
[1734182677502,4.55643212,221.38,221.31,21.62377244]
[1734182677701,2.68724536,221.42,221.32,21.62377244]
[1734182677918,5.34494917,221.46,221.3,21.62377244]
[1734182678122,2.75827626,221.43,221.29,21.62377244]
[1734182678372,2.75827626,221.43,221.3,0.67759232]
[1734182678526,2.75827626,221.43,221.3,22.30136476]
[1734182679213,2.75827626,221.43,221.25,1.5866]
[1734182679214,2.75827626,221.43,221.28,21.62377244]
[1734182679431,23.776884,221.39,221.3,21.62377244]
[1734182679723,4.815147,221.42,221.31,22.30138073]
[1734182680118,23.776884,221.41,221.31,22.30138073]
[1734182680305,4.815147,221.42,221.34,21.62377244]
[1734182680507,7.57342333,221.43,221.34,21.62377244]
[1734182680706,7.57342333,221.43,221.33,21.62377244]
[1734182680926,15.14684633,221.43,221.31,21.62377244]
[1734182681225,15.14684633,221.43,221.32,21.62377244]
[1734182681609,23.776884,221.42,221.31,21.62377244]
[1734182681812,23.776884,221.42,221.29,0.67755416]
[1734182682410,0.12549,221.41,221.29,0.67755416]
[1734182682711,23.776884,221.34,221.2,21.62377244]
[1734182682929,23.776884,221.34,221.21,0.67782818]
[1734182683123,28.59203107,221.34,221.21,0.67782818]
[1734182683331,28.59203107,221.34,221.23,22.30158132]
[1734182683517,28.59203107,221.34,221.24,21.62377244]
[1734182683714,28.59203107,221.34,221.23,0.67773692]
[1734182684316,0.12549,221.33,221.22,6.48]
[1734182684607,23.776884,221.3,221.19,1.5866]
[1734182684925,23.776884,221.31,221.2,22.30173359]
[1734182685111,23.776884,221.31,221.2,0.67796115]
[1734182685619,23.776884,221.31,221.2,22.30173359]
[1734182686249,23.776884,221.31,221.2,0.67796115]
[1734182686459,20.0,221.28,221.2,0.67796115]
[1734182686741,20.0,221.24,221.16,7.15789018]
[1734182687031,23.776884,221.23,221.13,1.5866]
[1734182687213,23.776884,221.23,221.11,0.67811189]
[1734182687522,28.59203107,221.23,221.11,0.67811189]
[1734182689116,23.902374,221.19,221.01,5.0]
[1734182689324,23.776884,221.15,221.03,21.62377244]
[1734182689709,23.776884,221.15,221.04,0.67831973]
[1734182690620,23.776884,221.17,221.05,21.74926244]
[1734182690828,23.776884,221.17,221.06,0.67824093]
[1734182691742,23.776884,221.17,221.07,0.12549]
[1734182692054,6.1496,221.29,221.1,21.62377244]
[1734182692055,20.0,221.26,221.1,21.62377244]
[1734182692335,4.81514707,221.24,221.11,0.67813405]
[1734182692509,4.81514707,221.24,221.11,22.30190649]
[1734182693431,23.776884,221.23,221.11,22.30190649]
[1734182693632,23.776884,221.19,221.11,22.30190649]
[1734182693811,23.776884,221.23,221.14,21.62377244]
[1734182694129,6.1496,221.29,221.15,22.30178796]
[1734182694326,6.1496,221.29,221.15,0.67801552]
[1734182695020,6.1496,221.29,221.14,0.67803186]
[1734182695622,23.776884,221.25,221.16,21.62377244]
[1734182695833,20.0,221.26,221.17,0.67795345]
[1734182696217,4.81514707,221.3,221.18,21.62377244]
[1734182696433,4.81514707,221.3,221.19,0.6778686]
[1734182697520,23.776884,221.29,221.19,0.6778686]
[1734182697926,23.776884,221.29,221.15,21.62377244]
[1734182698120,23.776884,221.29,221.14,22.30169371]
[1734182698317,23.776884,221.29,221.16,20.0]
[1734182698517,23.776884,221.29,221.14,0.67792127]
[1734182698518,23.776884,221.25,221.14,0.67792127]
[1734182698931,23.776884,221.25,221.13,6.1982]
[1734182699137,23.776884,221.25,221.14,0.67810956]
[1734182699334,23.776884,221.25,221.13,6.1982]
[1734182699335,23.776884,221.21,221.12,1.6462]
[1734182700320,23.776884,221.21,221.12,2.32434032]
[1734182701548,23.776884,221.21,221.1,21.62377244]
[1734182701549,23.776884,221.17,221.08,6.2283]
[1734182701847,23.776884,221.17,221.06,2.21434663]
[1734182702223,23.776884,221.17,221.06,23.83811907]
[1734182702866,23.776884,221.17,221.08,21.62377244]
[1734182703160,23.776884,221.17,221.09,22.30195421]
[1734182704023,23.776884,221.17,221.09,0.67818177]
[1734182704424,23.776884,221.17,221.06,23.15997244]
[1734182704643,23.776884,221.13,221.03,6.2283]
[1734182704943,23.776884,221.13,221.01,0.67833027]
[1734182705324,20.0,221.1,220.98,6.90679026]
[1734182705527,23.776884,221.09,220.98,6.90679026]
[1734182706245,23.776884,221.09,220.96,21.73398611]
[1734182706436,20.0,221.06,220.96,21.73398611]
[1734182706620,23.776884,221.05,220.96,0.11021367]
[1734182707944,23.776884,221.05,220.97,0.67859419]
[1734182708244,23.776884,221.05,220.97,22.30236663]
[1734182708426,23.776884,221.05,220.97,0.67859419]
[1734182709029,23.776884,221.05,220.97,22.30236663]
[1734182709235,23.776884,221.08,220.99,21.62377244]
[1734182709442,4.81514707,221.16,221.01,0.12549]
[1734182709729,4.81514707,221.16,221.02,22.30217518]
[1734182710044,2.65901849,221.15,221.02,0.67840274]
[1734182710244,2.65901849,221.15,220.99,21.62377244]
[1734182710440,2.65901849,221.15,221.0,20.0]
[1734182710640,0.12549,221.14,221.0,20.0]
[1734182710838,0.12549,221.14,221.01,0.67853052]
[1734182711039,20.0,221.13,221.01,0.67853052]
[1734182711636,23.776884,221.12,221.01,0.67853052]
[1734182711836,23.776884,221.12,221.0,0.67849506]
[1734182712335,20.0,221.13,221.01,21.62377244]
[1734182712531,20.0,221.13,221.02,0.67838636]
[1734182712732,0.12549,221.12,220.97,0.67844277]
[1734182712940,0.12549,221.1,220.96,0.11021367]
[1734182713149,0.12549,221.07,220.96,0.11021367]
[1734182713354,20.0,221.06,220.96,0.11021367]
[1734182713745,23.776884,221.05,220.96,0.11021367]
[1734182714052,23.776884,221.05,220.98,21.62377244]
[1734182714258,6.0851,221.11,220.96,0.78884241]
[1734182714259,6.0851,221.11,221.0,21.62377244]
[1734182714431,6.0851,221.11,221.01,0.67842606]
[1734182715032,6.0851,221.11,221.01,22.3021985]
[1734182715637,23.776884,221.1,221.01,22.3021985]
[1734182716136,23.776884,221.1,220.97,21.62377244]
[1734182716334,23.776884,221.1,220.98,0.67853851]
[1734182716529,23.776884,221.1,220.96,0.11021367]
[1734182716530,23.776884,221.06,220.96,0.11021367]
[1734182716753,23.776884,221.06,220.96,0.78884459]
[1734182718152,23.776884,221.06,220.96,0.11021367]
[1734182718653,23.776884,221.06,220.97,0.67865403]
[1734182719040,23.776884,221.06,220.96,0.11021367]
[1734182719237,20.0,221.03,220.96,0.11021367]
[1734182719450,23.776884,221.02,220.96,0.11021367]
[1734182720462,23.776884,220.98,220.96,0.11021367]
[1734182721849,6.3664,221.04,220.96,0.11021367]
[1734182722046,5.51994148,221.09,220.96,0.11021367]
[1734182722047,11.88634148,221.09,220.98,21.62377244]
[1734182722376,2.65901849,221.15,221.01,21.62377244]
[1734182722377,6.3664,221.14,221.01,21.62377244]
[1734182722537,6.3664,221.14,221.03,21.62377244]
[1734182722843,6.3664,221.14,221.04,0.67839602]
[1734182723244,6.3664,221.14,221.02,21.62377244]
[1734182723650,6.3664,221.14,221.03,0.67845009]
[1734182724186,6.3664,221.14,220.99,0.67846101]
[1734182724481,0.12549,221.13,220.99,22.30223345]
[1734182724778,20.0,221.11,221.0,21.62377244]
[1734182725065,23.776884,221.1,221.01,0.67848672]
[1734182726643,23.776884,221.1,221.0,0.6785085]
[1734182727558,6.3664,221.14,221.02,21.62377244]
[1734182727869,6.3664,221.14,221.04,21.62377244]
[1734182728071,6.3664,221.14,221.03,22.3021474]
[1734182729070,6.3664,221.14,221.04,21.62377244]
[1734182729276,6.3664,221.14,221.05,0.67832784]
[1734182730358,23.776884,221.13,221.05,0.67832784]
[1734182730582,20.0,221.16,221.07,21.62377244]
[1734182730917,6.3664,221.19,221.09,21.62377244]
[1734182731254,6.3664,221.19,221.08,0.67820673]
[1734182731255,6.3664,221.19,221.08,22.30197917]
[1734182731580,1.6623,221.21,221.12,21.62377244]
[1734182731744,6.3664,221.24,221.16,21.62377244]
[1734182731944,1.6623,221.28,221.17,0.67800363]
[1734182732572,1.6623,221.28,221.17,22.30177607]
[1734182732770,1.6623,221.28,221.17,0.67800363]
[1734182733089,20.0,221.26,221.17,22.30177607]
[1734182733443,6.3664,221.29,221.2,21.62377244]
[1734182733646,6.3664,221.29,221.21,22.30162634]
[1734182733979,7.823,221.34,221.23,21.62377244]
[1734182734388,7.823,221.34,221.24,22.30153582]
[1734182734692,6.1737,221.34,221.24,22.30153582]
[1734182735899,23.776884,221.33,221.19,21.62377244]
[1734182736079,23.776884,221.29,221.19,22.30166941]
[1734182736277,23.776884,221.29,221.2,21.62377244]
[1734182736492,23.776884,221.29,221.21,0.6778541]
[1734182736683,23.776884,221.29,221.21,22.30162654]
[1734182736879,23.776884,221.29,221.18,21.62377244]